[Event "Late-Titled-Tuesday-Blitz-March-05-2024"]
[Site "Chess.com"]
[Date "2024.03.05"]
[Round "11"]
[White "Igor_Lysyj"]
[Black "Zadar321"]
[Result "1/2-1/2"]
[WhiteElo "2835"]
[BlackElo "2570"]
[TimeControl "180+1"]
[EndTime "16:03:39 PST"]
[Termination "Game drawn - insufficient material"]

1. d4 {[%clk 0:02:59.7]} 1... Nf6 {[%clk 0:02:59.1]} 2. c4 {[%clk 0:02:59.1]}
2... Nc6 {[%clk 0:02:58.4]} 3. Nf3 {[%clk 0:02:57.8]} 3... e6 {[%clk 0:02:56.7]}
4. g3 {[%clk 0:02:57.6]} 4... d5 {[%clk 0:02:53.2]} 5. Bg2 {[%clk 0:02:57]} 5...
dxc4 {[%clk 0:02:44.9]} 6. Qa4 {[%clk 0:02:56.8]} 6... Bb4+ {[%clk 0:02:41]} 7.
Bd2 {[%clk 0:02:55.9]} 7... Nd5 {[%clk 0:02:36]} 8. Bxb4 {[%clk 0:02:52.7]} 8...
Nxb4 {[%clk 0:02:36]} 9. Ne5 {[%clk 0:02:50.4]} 9... O-O {[%clk 0:02:22.4]} 10.
Nxc6 {[%clk 0:02:47.7]} 10... Nxc6 {[%clk 0:02:19.1]} 11. e3 {[%clk 0:02:47.8]}
11... e5 {[%clk 0:02:15.8]} 12. d5 {[%clk 0:02:46.3]} 12... Ne7 {[%clk 0:02:10]}
13. Qxc4 {[%clk 0:02:44.4]} 13... c6 {[%clk 0:02:06.7]} 14. dxc6 {[%clk
0:02:43.8]} 14... Qb6 {[%clk 0:01:55.5]} 15. O-O {[%clk 0:02:40.2]} 15... Qxb2
{[%clk 0:01:50.9]} 16. cxb7 {[%clk 0:02:36.4]} 16... Bxb7 {[%clk 0:01:46]} 17.
Qb3 {[%clk 0:02:26.2]} 17... Qxb3 {[%clk 0:01:36.9]} 18. axb3 {[%clk 0:02:26]}
18... Bxg2 {[%clk 0:01:31.6]} 19. Kxg2 {[%clk 0:02:26.2]} 19... Rfd8 {[%clk
0:01:24]} 20. Na3 {[%clk 0:02:12]} 20... Rd3 {[%clk 0:01:19.2]} 21. Rfb1 {[%clk
0:02:03.1]} 21... h5 {[%clk 0:01:19.1]} 22. Nc4 {[%clk 0:02:02.1]} 22... f6
{[%clk 0:01:14.5]} 23. Ra6 {[%clk 0:01:24]} 23... Kf8 {[%clk 0:00:30.1]} 24. Na5
{[%clk 0:01:13.2]} 24... h4 {[%clk 0:00:17.5]} 25. Rc1 {[%clk 0:01:10.4]} 25...
hxg3 {[%clk 0:00:16.8]} 26. hxg3 {[%clk 0:01:10.1]} 26... Rc8 {[%clk 0:00:15.6]}
27. Rh1 {[%clk 0:00:53.8]} 27... Rc7 {[%clk 0:00:12.6]} 28. Rh8+ {[%clk
0:00:47.3]} 28... Kf7 {[%clk 0:00:12.7]} 29. Ra8 {[%clk 0:00:46.7]} 29... Nf5
{[%clk 0:00:09.8]} 30. R6xa7 {[%clk 0:00:43.2]} 30... Rxa7 {[%clk 0:00:10.7]}
31. Rxa7+ {[%clk 0:00:43.3]} 31... Kg6 {[%clk 0:00:11.6]} 32. g4 {[%clk
0:00:38.9]} 32... Nd6 {[%clk 0:00:11.3]} 33. Rd7 {[%clk 0:00:37]} 33... Rd2
{[%clk 0:00:10.8]} 34. Nb7 {[%clk 0:00:34.6]} 34... Ne4 {[%clk 0:00:10.1]} 35.
Rxd2 {[%clk 0:00:32.7]} 35... Nxd2 {[%clk 0:00:11]} 36. b4 {[%clk 0:00:33.2]}
36... Kf7 {[%clk 0:00:11]} 37. b5 {[%clk 0:00:27.7]} 37... Ke7 {[%clk
0:00:11.2]} 38. Nc5 {[%clk 0:00:25.1]} 38... Nc4 {[%clk 0:00:11]} 39. Ne4 {[%clk
0:00:22.7]} 39... Kd7 {[%clk 0:00:09.9]} 40. Ng3 {[%clk 0:00:22.8]} 40... g6
{[%clk 0:00:09.5]} 41. Kf3 {[%clk 0:00:14.8]} 41... Ke6 {[%clk 0:00:09.7]} 42.
Ne4 {[%clk 0:00:14.5]} 42... f5 {[%clk 0:00:10]} 43. Nc3 {[%clk 0:00:13.4]}
43... Kd6 {[%clk 0:00:10.1]} 44. Na4 {[%clk 0:00:13.2]} 44... Kd5 {[%clk
0:00:09.6]} 45. Nc3+ {[%clk 0:00:11.2]} 45... Kc5 {[%clk 0:00:09.1]} 46. gxf5
{[%clk 0:00:11]} 46... gxf5 {[%clk 0:00:09.3]} 47. Kg3 {[%clk 0:00:11.3]} 47...
Kb4 {[%clk 0:00:08.1]} 48. Nd5+ {[%clk 0:00:10.5]} 48... Kxb5 {[%clk 0:00:08.4]}
49. Ne7 {[%clk 0:00:09.7]} 49... Nd6 {[%clk 0:00:07.7]} 50. Kh4 {[%clk
0:00:08.6]} 50... Kc5 {[%clk 0:00:08.1]} 51. Kg5 {[%clk 0:00:09.2]} 51... Ne4+
{[%clk 0:00:07.3]} 52. Kxf5 {[%clk 0:00:08.4]} 52... Nxf2 {[%clk 0:00:08.2]} 53.
Kxe5 {[%clk 0:00:08.2]} 53... Nd1 {[%clk 0:00:07.9]} 54. e4 {[%clk 0:00:08.3]}
54... Nc3 {[%clk 0:00:08.4]} 55. Kf5 {[%clk 0:00:08.5]} 55... Nxe4 {[%clk
0:00:08.6]} 1/2-1/2

[Event "Late-Titled-Tuesday-Blitz-March-05-2024"]
[Site "Chess.com"]
[Date "2024.03.05"]
[Round "11"]
[White "KetiTsatsalashvili"]
[Black "maximnovik"]
[Result "1-0"]
[WhiteElo "2504"]
[BlackElo "2595"]
[TimeControl "180+1"]
[EndTime "16:03:43 PST"]
[Termination "KetiTsatsalashvili won on time"]

1. d4 {[%clk 0:03:00.9]} 1... Nf6 {[%clk 0:02:59.2]} 2. Nf3 {[%clk 0:03:00.3]}
2... g6 {[%clk 0:02:59.4]} 3. c4 {[%clk 0:03:00.2]} 3... Bg7 {[%clk 0:02:59.8]}
4. Nc3 {[%clk 0:03:00.9]} 4... d5 {[%clk 0:03:00.4]} 5. cxd5 {[%clk 0:03:00.4]}
5... Nxd5 {[%clk 0:03:00.7]} 6. e4 {[%clk 0:03:00.8]} 6... Nxc3 {[%clk
0:03:01.3]} 7. bxc3 {[%clk 0:03:01.7]} 7... c5 {[%clk 0:03:02.1]} 8. Be2 {[%clk
0:03:01.8]} 8... Nc6 {[%clk 0:03:01.6]} 9. Be3 {[%clk 0:02:59.1]} 9... Bg4
{[%clk 0:03:00.7]} 10. e5 {[%clk 0:02:59.2]} 10... Be6 {[%clk 0:03:00.5]} 11.
O-O {[%clk 0:02:57.7]} 11... O-O {[%clk 0:02:59.9]} 12. Qd2 {[%clk 0:02:56.8]}
12... Bd5 {[%clk 0:02:59.3]} 13. Rab1 {[%clk 0:02:56.6]} 13... Qd7 {[%clk
0:02:51.4]} 14. Rfd1 {[%clk 0:02:53.4]} 14... cxd4 {[%clk 0:02:50.1]} 15. cxd4
{[%clk 0:02:52.6]} 15... Rfc8 {[%clk 0:02:48.6]} 16. Bh6 {[%clk 0:02:49.9]}
16... Rc7 {[%clk 0:02:20]} 17. Bxg7 {[%clk 0:02:49.4]} 17... Kxg7 {[%clk
0:02:20]} 18. h3 {[%clk 0:02:47.1]} 18... Rd8 {[%clk 0:02:17.9]} 19. a3 {[%clk
0:02:43.9]} 19... Bxf3 {[%clk 0:02:12.9]} 20. Bxf3 {[%clk 0:02:43.8]} 20... Nxd4
{[%clk 0:02:11.4]} 21. Qe3 {[%clk 0:02:27.7]} 21... b5 {[%clk 0:01:15.6]} 22.
Bg4 {[%clk 0:02:22.2]} 22... e6 {[%clk 0:01:15.1]} 23. Kh1 {[%clk 0:02:18.2]}
23... Rc4 {[%clk 0:00:56.5]} 24. Be2 {[%clk 0:02:13.9]} 24... Rc5 {[%clk
0:00:50.9]} 25. Rb4 {[%clk 0:02:05.5]} 25... Rd5 {[%clk 0:00:50.7]} 26. Rdb1
{[%clk 0:01:43.3]} 26... Nc2 {[%clk 0:00:46]} 27. Qf4 {[%clk 0:01:31.5]} 27...
Nxb4 {[%clk 0:00:45.6]} 28. Qf6+ {[%clk 0:01:22.8]} 28... Kg8 {[%clk 0:00:44.5]}
29. Rxb4 {[%clk 0:01:23.7]} 29... a6 {[%clk 0:00:38.7]} 30. h4 {[%clk
0:01:09.4]} 30... Qc7 {[%clk 0:00:29.2]} 31. Re4 {[%clk 0:01:02.4]} 31... Rd4
{[%clk 0:00:23.7]} 32. Re3 {[%clk 0:00:58.1]} 32... R8d7 {[%clk 0:00:21.4]} 33.
g3 {[%clk 0:00:40.3]} 33... Qd8 {[%clk 0:00:21.2]} 34. Qf3 {[%clk 0:00:36.5]}
34... h5 {[%clk 0:00:21.2]} 35. Kh2 {[%clk 0:00:36]} 35... R7d5 {[%clk
0:00:20.9]} 36. Bf1 {[%clk 0:00:34.9]} 36... Rd2 {[%clk 0:00:20.5]} 37. Bg2
{[%clk 0:00:34.7]} 37... Rc5 {[%clk 0:00:19.9]} 38. Qf4 {[%clk 0:00:33.1]} 38...
Rcc2 {[%clk 0:00:19.7]} 39. Rf3 {[%clk 0:00:33.2]} 39... Qe7 {[%clk 0:00:19.9]}
40. Bf1 {[%clk 0:00:29.9]} 40... Qa7 {[%clk 0:00:19.1]} 41. Kg2 {[%clk
0:00:29.4]} 41... Qe7 {[%clk 0:00:16.6]} 42. Bd3 {[%clk 0:00:29.5]} 42... Rc1
{[%clk 0:00:15.7]} 43. Qxd2 {[%clk 0:00:22.1]} 43... Qc7 {[%clk 0:00:14.7]} 44.
Qf4 {[%clk 0:00:19.6]} 44... Rc3 {[%clk 0:00:13.8]} 45. Qe4 {[%clk 0:00:14.2]}
45... Rxa3 {[%clk 0:00:12.1]} 46. Qa8+ {[%clk 0:00:13.5]} 46... Kg7 {[%clk
0:00:12]} 47. Qe4 {[%clk 0:00:12.3]} 47... Ra4 {[%clk 0:00:12.2]} 48. Qe3 {[%clk
0:00:11.8]} 48... Qd7 {[%clk 0:00:11.3]} 49. Be2 {[%clk 0:00:11.2]} 49... Qd4
{[%clk 0:00:11.2]} 50. Qxd4 {[%clk 0:00:10.6]} 50... Rxd4 {[%clk 0:00:11.1]} 51.
Ra3 {[%clk 0:00:11.2]} 51... Rd5 {[%clk 0:00:09.2]} 52. f4 {[%clk 0:00:11.4]}
52... Rd2 {[%clk 0:00:01.9]} 53. Kf2 {[%clk 0:00:11.8]} 53... b4 {[%clk
0:00:02]} 54. Rxa6 {[%clk 0:00:12.1]} 54... b3 {[%clk 0:00:02.5]} 55. Rb6 {[%clk
0:00:12.6]} 55... b2 {[%clk 0:00:02.9]} 56. Ke3 {[%clk 0:00:12.3]} 56... Rc2
{[%clk 0:00:03.2]} 57. Kd3 {[%clk 0:00:12.4]} 1-0

[Event "Late-Titled-Tuesday-Blitz-March-05-2024"]
[Site "Chess.com"]
[Date "2024.03.05"]
[Round "11"]
[White "AccioChess"]
[Black "GlavkonVVS"]
[Result "1-0"]
[WhiteElo "2426"]
[BlackElo "2530"]
[TimeControl "180+1"]
[EndTime "16:03:46 PST"]
[Termination "AccioChess won on time"]

1. e4 {[%clk 0:02:51.9]} 1... Nf6 {[%clk 0:02:57.6]} 2. e5 {[%clk 0:02:49.8]}
2... Nd5 {[%clk 0:02:57.4]} 3. d4 {[%clk 0:02:50.7]} 3... d6 {[%clk 0:02:57.2]}
4. Nf3 {[%clk 0:02:50.9]} 4... Bg4 {[%clk 0:02:56.9]} 5. Bc4 {[%clk 0:02:50]}
5... dxe5 {[%clk 0:02:51.4]} 6. dxe5 {[%clk 0:02:50.9]} 6... e6 {[%clk
0:02:50.7]} 7. h3 {[%clk 0:02:47.9]} 7... Bh5 {[%clk 0:02:50.3]} 8. O-O {[%clk
0:02:46]} 8... Be7 {[%clk 0:02:50]} 9. Nbd2 {[%clk 0:02:43.3]} 9... Nd7 {[%clk
0:02:45.6]} 10. Re1 {[%clk 0:02:42.8]} 10... O-O {[%clk 0:02:42.4]} 11. Bxd5
{[%clk 0:02:41.4]} 11... exd5 {[%clk 0:02:42.3]} 12. Nf1 {[%clk 0:02:39.3]}
12... Nc5 {[%clk 0:02:41.2]} 13. Ng3 {[%clk 0:02:37.3]} 13... Bg6 {[%clk
0:02:40.9]} 14. Nd4 {[%clk 0:02:36.9]} 14... Ne6 {[%clk 0:02:38.4]} 15. f4
{[%clk 0:02:33.8]} 15... Bc5 {[%clk 0:02:30.6]} 16. c3 {[%clk 0:02:33.3]} 16...
Qh4 {[%clk 0:02:26.2]} 17. Qg4 {[%clk 0:02:31.8]} 17... Qxg4 {[%clk 0:02:24]}
18. hxg4 {[%clk 0:02:32.7]} 18... Nxd4 {[%clk 0:02:21.8]} 19. cxd4 {[%clk
0:02:33.6]} 19... Bxd4+ {[%clk 0:02:21.7]} 20. Be3 {[%clk 0:02:33.4]} 20...
Bxe3+ {[%clk 0:02:17.5]} 21. Rxe3 {[%clk 0:02:34.3]} 21... f6 {[%clk 0:01:56.6]}
22. f5 {[%clk 0:02:28.6]} 22... Be8 {[%clk 0:01:52.9]} 23. e6 {[%clk 0:02:28.4]}
23... c5 {[%clk 0:01:49]} 24. Rc1 {[%clk 0:02:24]} 24... b6 {[%clk 0:01:47.5]}
25. b4 {[%clk 0:02:22.2]} 25... Rc8 {[%clk 0:01:29.2]} 26. Rec3 {[%clk
0:02:20.4]} 26... d4 {[%clk 0:01:24.9]} 27. Ra3 {[%clk 0:02:10.5]} 27... Rc7
{[%clk 0:01:15.7]} 28. bxc5 {[%clk 0:02:05.5]} 28... bxc5 {[%clk 0:01:15.4]} 29.
Ne4 {[%clk 0:02:01.3]} 29... c4 {[%clk 0:01:13.3]} 30. Rd3 {[%clk 0:01:07.6]}
30... h5 {[%clk 0:00:48.7]} 31. Rxd4 {[%clk 0:01:03.7]} 31... hxg4 {[%clk
0:00:48.4]} 32. Rdxc4 {[%clk 0:01:03.4]} 32... Rxc4 {[%clk 0:00:45.7]} 33. Rxc4
{[%clk 0:01:04.3]} 33... Bb5 {[%clk 0:00:40.1]} 34. Rc7 {[%clk 0:00:55.9]} 34...
Ra8 {[%clk 0:00:19.9]} 35. Nd6 {[%clk 0:00:54.6]} 35... Ba4 {[%clk 0:00:17.3]}
36. Kf2 {[%clk 0:00:47.9]} 36... Rd8 {[%clk 0:00:14.1]} 37. Rxa7 {[%clk
0:00:40.4]} 37... Rxd6 {[%clk 0:00:14.2]} 38. Rxa4 {[%clk 0:00:40.1]} 38... Kf8
{[%clk 0:00:13.7]} 39. Ra8+ {[%clk 0:00:39.1]} 39... Ke7 {[%clk 0:00:13.4]} 40.
Ra7+ {[%clk 0:00:38.3]} 40... Kf8 {[%clk 0:00:13.6]} 41. Kg3 {[%clk 0:00:37.2]}
41... Rd4 {[%clk 0:00:13.3]} 42. a4 {[%clk 0:00:30]} 42... Re4 {[%clk
0:00:11.2]} 43. a5 {[%clk 0:00:29.2]} 43... g6 {[%clk 0:00:08.6]} 44. Rf7+
{[%clk 0:00:20.8]} 44... Kg8 {[%clk 0:00:08]} 45. Rxf6 {[%clk 0:00:21]} 45...
gxf5 {[%clk 0:00:08.2]} 46. Rxf5 {[%clk 0:00:21]} 46... Rxe6 {[%clk 0:00:08.5]}
47. Kxg4 {[%clk 0:00:21.4]} 47... Re4+ {[%clk 0:00:08.3]} 48. Kh5 {[%clk
0:00:20.2]} 48... Ra4 {[%clk 0:00:08.4]} 49. g4 {[%clk 0:00:19.9]} 49... Kg7
{[%clk 0:00:08.8]} 50. Kg5 {[%clk 0:00:18.6]} 50... Ra1 {[%clk 0:00:08.2]} 51.
Rb5 {[%clk 0:00:17.9]} 51... Ra4 {[%clk 0:00:08]} 52. Rb7+ {[%clk 0:00:17.7]}
52... Kf8 {[%clk 0:00:08.4]} 53. Ra7 {[%clk 0:00:18.4]} 53... Ra1 {[%clk
0:00:06.7]} 54. Kf5 {[%clk 0:00:18.4]} 54... Rf1+ {[%clk 0:00:06.6]} 55. Kg6
{[%clk 0:00:18.4]} 55... Ra1 {[%clk 0:00:06.4]} 56. Ra8+ {[%clk 0:00:18.7]}
56... Ke7 {[%clk 0:00:06.3]} 57. g5 {[%clk 0:00:19.6]} 57... Rg1 {[%clk
0:00:05.8]} 58. Kh6 {[%clk 0:00:19.5]} 58... Rh1+ {[%clk 0:00:06]} 59. Kg7
{[%clk 0:00:19.6]} 59... Ra1 {[%clk 0:00:05.5]} 60. g6 {[%clk 0:00:19.6]} 60...
Rg1 {[%clk 0:00:05.3]} 61. Ra6 {[%clk 0:00:19.4]} 61... Kd7 {[%clk 0:00:05]} 62.
Kg8 {[%clk 0:00:19.1]} 62... Kc7 {[%clk 0:00:04.5]} 63. g7 {[%clk 0:00:19.4]}
63... Rg5 {[%clk 0:00:03.9]} 64. Rf6 {[%clk 0:00:19.6]} 64... Rxa5 {[%clk
0:00:03.2]} 65. Kf7 {[%clk 0:00:20.1]} 65... Ra8 {[%clk 0:00:01.9]} 66. g8=Q
{[%clk 0:00:21]} 66... Rxg8 {[%clk 0:00:01.6]} 67. Kxg8 {[%clk 0:00:21.9]} 1-0

[Event "Late-Titled-Tuesday-Blitz-March-05-2024"]
[Site "Chess.com"]
[Date "2024.03.05"]
[Round "11"]
[White "vladoboch"]
[Black "VinzentSpitzl"]
[Result "1-0"]
[WhiteElo "2456"]
[BlackElo "2540"]
[TimeControl "180+1"]
[EndTime "16:03:58 PST"]
[Termination "vladoboch won on time"]

1. e4 {[%clk 0:02:54.8]} 1... c6 {[%clk 0:02:59.2]} 2. d4 {[%clk 0:02:54.9]}
2... d5 {[%clk 0:02:59.2]} 3. e5 {[%clk 0:02:55.7]} 3... c5 {[%clk 0:02:58.9]}
4. dxc5 {[%clk 0:02:54.6]} 4... e6 {[%clk 0:02:58.2]} 5. a3 {[%clk 0:02:50.3]}
5... Nc6 {[%clk 0:02:55.3]} 6. Nf3 {[%clk 0:02:49.6]} 6... Bxc5 {[%clk
0:02:48.3]} 7. b4 {[%clk 0:02:49.8]} 7... Bb6 {[%clk 0:02:48.1]} 8. Bb2 {[%clk
0:02:50.3]} 8... Nge7 {[%clk 0:02:47.1]} 9. Nbd2 {[%clk 0:02:50.5]} 9... Ng6
{[%clk 0:02:46.2]} 10. Bd3 {[%clk 0:02:49.7]} 10... Nf4 {[%clk 0:02:44.7]} 11.
g3 {[%clk 0:02:46.3]} 11... Nxd3+ {[%clk 0:02:43.8]} 12. cxd3 {[%clk 0:02:47.2]}
12... Bd7 {[%clk 0:02:39.4]} 13. O-O {[%clk 0:02:45.2]} 13... O-O {[%clk
0:02:38.8]} 14. Nb3 {[%clk 0:02:44.1]} 14... Rc8 {[%clk 0:02:36.1]} 15. Rc1
{[%clk 0:02:32.2]} 15... a6 {[%clk 0:02:23.8]} 16. Re1 {[%clk 0:02:26.1]} 16...
Na7 {[%clk 0:02:23.2]} 17. Qd2 {[%clk 0:02:08.9]} 17... Qe7 {[%clk 0:02:13.7]}
18. Bd4 {[%clk 0:02:00.9]} 18... Bxd4 {[%clk 0:02:05.7]} 19. Nbxd4 {[%clk
0:02:01.2]} 19... Nb5 {[%clk 0:01:57.7]} 20. Nxb5 {[%clk 0:01:59.5]} 20... Bxb5
{[%clk 0:01:57.9]} 21. Nd4 {[%clk 0:01:57]} 21... Ba4 {[%clk 0:01:57.8]} 22.
Rxc8 {[%clk 0:01:52.3]} 22... Rxc8 {[%clk 0:01:56.7]} 23. Rc1 {[%clk 0:01:53.2]}
23... Qd7 {[%clk 0:01:56.3]} 24. Rc3 {[%clk 0:01:48.4]} 24... Rxc3 {[%clk
0:01:48]} 25. Qxc3 {[%clk 0:01:49.3]} 25... b6 {[%clk 0:01:48.1]} 26. h4 {[%clk
0:01:42.3]} 26... h6 {[%clk 0:01:45.2]} 27. Kg2 {[%clk 0:01:39.2]} 27... Kh7
{[%clk 0:01:40.8]} 28. g4 {[%clk 0:01:30.1]} 28... f6 {[%clk 0:01:32.9]} 29. Nf3
{[%clk 0:01:16.6]} 29... Kg6 {[%clk 0:01:19.3]} 30. h5+ {[%clk 0:01:15.4]} 30...
Kf7 {[%clk 0:01:17.2]} 31. Qd4 {[%clk 0:00:57.7]} 31... Bd1 {[%clk 0:01:13]} 32.
exf6 {[%clk 0:00:34.7]} 32... gxf6 {[%clk 0:01:03.8]} 33. Qxb6 {[%clk
0:00:32.1]} 33... e5 {[%clk 0:01:03.7]} 34. Kg3 {[%clk 0:00:20.3]} 34... e4
{[%clk 0:01:00]} 35. dxe4 {[%clk 0:00:17.3]} 35... dxe4 {[%clk 0:01:00]} 36. Nh2
{[%clk 0:00:14.9]} 36... Qd3+ {[%clk 0:00:56.6]} 37. Qe3 {[%clk 0:00:15.5]}
37... Qd6+ {[%clk 0:00:51.1]} 38. Kg2 {[%clk 0:00:10.7]} 38... Qd5 {[%clk
0:00:33.7]} 39. Kg1 {[%clk 0:00:04.8]} 39... Kg7 {[%clk 0:00:18]} 40. Qa7+
{[%clk 0:00:05]} 40... Kg8 {[%clk 0:00:18.1]} 41. Qxa6 {[%clk 0:00:05.6]} 41...
Bf3 {[%clk 0:00:16.5]} 42. Nxf3 {[%clk 0:00:05]} 42... exf3 {[%clk 0:00:16.6]}
43. Qf1 {[%clk 0:00:05.1]} 43... Qe4 {[%clk 0:00:14.1]} 44. Qh3 {[%clk
0:00:04.6]} 44... Qf4 {[%clk 0:00:12.2]} 45. Qg3 {[%clk 0:00:04.1]} 45... Qc1+
{[%clk 0:00:12.1]} 46. Kh2 {[%clk 0:00:04]} 46... Qxa3 {[%clk 0:00:13]} 47. b5
{[%clk 0:00:01.7]} 47... Qb3 {[%clk 0:00:11.2]} 48. Qb8+ {[%clk 0:00:02]} 48...
Kg7 {[%clk 0:00:11]} 49. Kg3 {[%clk 0:00:02.9]} 49... Qd5 {[%clk 0:00:08.7]} 50.
b6 {[%clk 0:00:02.2]} 50... Qd1 {[%clk 0:00:07.3]} 51. Qc7+ {[%clk 0:00:02.7]}
51... Kg8 {[%clk 0:00:07]} 52. b7 {[%clk 0:00:03.3]} 52... Qg1+ {[%clk 0:00:07]}
53. Kxf3 {[%clk 0:00:03.9]} 53... Qh1+ {[%clk 0:00:07.2]} 54. Ke2 {[%clk
0:00:04]} 54... Qe4+ {[%clk 0:00:06.6]} 55. Kd2 {[%clk 0:00:04.1]} 55... Qd4+
{[%clk 0:00:06.8]} 56. Kc2 {[%clk 0:00:04.5]} 56... Qe4+ {[%clk 0:00:05.4]} 57.
Kb3 {[%clk 0:00:05]} 57... Qd5+ {[%clk 0:00:05.3]} 58. Qc4 {[%clk 0:00:03.9]}
1-0

[Event "Late-Titled-Tuesday-Blitz-March-05-2024"]
[Site "Chess.com"]
[Date "2024.03.05"]
[Round "11"]
[White "ATM622"]
[Black "Mikhail_Golubev"]
[Result "0-1"]
[WhiteElo "2490"]
[BlackElo "2628"]
[TimeControl "180+1"]
[EndTime "16:04:14 PST"]
[Termination "Mikhail_Golubev won by checkmate"]

1. d4 {[%clk 0:02:57]} 1... Nf6 {[%clk 0:02:59.1]} 2. c4 {[%clk 0:02:56.2]} 2...
d6 {[%clk 0:02:58.4]} 3. Nf3 {[%clk 0:02:54.5]} 3... g6 {[%clk 0:02:58.4]} 4. g3
{[%clk 0:02:54.5]} 4... Bg7 {[%clk 0:02:58.8]} 5. Bg2 {[%clk 0:02:54.9]} 5...
O-O {[%clk 0:02:59.4]} 6. O-O {[%clk 0:02:55.3]} 6... Nbd7 {[%clk 0:02:59.6]} 7.
Nc3 {[%clk 0:02:54.4]} 7... e5 {[%clk 0:02:59.4]} 8. dxe5 {[%clk 0:02:51.4]}
8... dxe5 {[%clk 0:02:58.9]} 9. e4 {[%clk 0:02:51.3]} 9... c6 {[%clk 0:02:55]}
10. Re1 {[%clk 0:02:50.5]} 10... Re8 {[%clk 0:02:54.1]} 11. Be3 {[%clk
0:02:46.6]} 11... Ng4 {[%clk 0:02:49.5]} 12. Bg5 {[%clk 0:02:45.3]} 12... Qb6
{[%clk 0:02:48.4]} 13. Qd2 {[%clk 0:02:41.2]} 13... h6 {[%clk 0:02:44]} 14. h3
{[%clk 0:02:40]} 14... Qxf2+ {[%clk 0:02:35.1]} 15. Qxf2 {[%clk 0:02:38.3]}
15... Nxf2 {[%clk 0:02:36]} 16. Kxf2 {[%clk 0:02:39.1]} 16... hxg5 {[%clk
0:02:35.8]} 17. Nxg5 {[%clk 0:02:39.3]} 17... Nc5 {[%clk 0:02:30]} 18. Rad1
{[%clk 0:02:37.9]} 18... a5 {[%clk 0:02:26.7]} 19. g4 {[%clk 0:02:24.3]} 19...
f6 {[%clk 0:02:15.6]} 20. Nf3 {[%clk 0:02:20.5]} 20... Be6 {[%clk 0:02:15.3]}
21. b3 {[%clk 0:02:11.8]} 21... Bh6 {[%clk 0:01:52.8]} 22. g5 {[%clk 0:02:01.6]}
22... fxg5 {[%clk 0:01:46.9]} 23. Nxe5 {[%clk 0:01:57.6]} 23... Bg7 {[%clk
0:01:40.5]} 24. Nd3 {[%clk 0:01:42.5]} 24... Bxc3 {[%clk 0:01:18.6]} 25. Nxc5
{[%clk 0:01:41.2]} 25... Bxe1+ {[%clk 0:01:18.5]} 26. Kxe1 {[%clk 0:01:36.6]}
26... b6 {[%clk 0:01:16.4]} 27. Nb7 {[%clk 0:01:31.3]} 27... a4 {[%clk
0:00:56.5]} 28. Kf2 {[%clk 0:01:16.2]} 28... axb3 {[%clk 0:00:55.9]} 29. axb3
{[%clk 0:01:17.1]} 29... Ra2+ {[%clk 0:00:54.1]} 30. Kg1 {[%clk 0:01:17.1]}
30... Rf8 {[%clk 0:00:42.3]} 31. Rd6 {[%clk 0:01:11.7]} 31... Rff2 {[%clk
0:00:39.8]} 32. Rxe6 {[%clk 0:01:11.6]} 32... Rxg2+ {[%clk 0:00:39.6]} 33. Kh1
{[%clk 0:01:07.9]} 33... Rgb2 {[%clk 0:00:38.4]} 34. Rxg6+ {[%clk 0:01:07.2]}
34... Kf7 {[%clk 0:00:35]} 35. Rxg5 {[%clk 0:01:07.5]} 35... Rb1+ {[%clk
0:00:33.1]} 36. Rg1 {[%clk 0:01:08.1]} 36... Rxb3 {[%clk 0:00:32.9]} 37. Nd6+
{[%clk 0:01:00.9]} 37... Ke6 {[%clk 0:00:32]} 38. Rg6+ {[%clk 0:00:59.9]} 38...
Ke5 {[%clk 0:00:32]} 39. Nf7+ {[%clk 0:00:52.4]} 39... Kxe4 {[%clk 0:00:29.8]}
40. Rg4+ {[%clk 0:00:50]} 40... Kf5 {[%clk 0:00:26.3]} 41. Nd6+ {[%clk 0:00:35]}
41... Ke6 {[%clk 0:00:22.1]} 42. Rg6+ {[%clk 0:00:32.9]} 42... Kd7 {[%clk
0:00:22.2]} 43. Nf5 {[%clk 0:00:10.7]} 43... Rb1+ {[%clk 0:00:19.7]} 44. Rg1
{[%clk 0:00:09.5]} 44... Rxg1+ {[%clk 0:00:17.1]} 45. Kxg1 {[%clk 0:00:10.4]}
45... b5 {[%clk 0:00:16.7]} 46. cxb5 {[%clk 0:00:09.4]} 46... cxb5 {[%clk
0:00:17.1]} 47. Nd4 {[%clk 0:00:08.6]} 47... b4 {[%clk 0:00:16.3]} 48. Kf1
{[%clk 0:00:08.9]} 48... Ra3 {[%clk 0:00:10.9]} 49. Ke2 {[%clk 0:00:04]} 49...
Rxh3 {[%clk 0:00:09.5]} 50. Kd2 {[%clk 0:00:02.5]} 50... Kd6 {[%clk 0:00:08.9]}
51. Kc2 {[%clk 0:00:02.4]} 51... Kc5 {[%clk 0:00:07.7]} 52. Nb3+ {[%clk
0:00:02.7]} 52... Kc4 {[%clk 0:00:06.5]} 53. Nd2+ {[%clk 0:00:02.9]} 53... Kb5
{[%clk 0:00:06.2]} 54. Kb2 {[%clk 0:00:01.2]} 54... Rh2 {[%clk 0:00:05.4]} 55.
Kc2 {[%clk 0:00:01.5]} 55... Ka4 {[%clk 0:00:05]} 56. Kd3 {[%clk 0:00:01.3]}
56... Rxd2+ {[%clk 0:00:04.5]} 57. Kxd2 {[%clk 0:00:01.5]} 57... Kb3 {[%clk
0:00:04.3]} 58. Kc1 {[%clk 0:00:02]} 58... Ka2 {[%clk 0:00:04.7]} 59. Kc2 {[%clk
0:00:02.7]} 59... b3+ {[%clk 0:00:05.2]} 60. Kc1 {[%clk 0:00:03.6]} 60... b2+
{[%clk 0:00:05.7]} 61. Kd2 {[%clk 0:00:04.4]} 61... b1=Q {[%clk 0:00:06.1]} 62.
Kc3 {[%clk 0:00:05.3]} 62... Qc1+ {[%clk 0:00:05.4]} 63. Kd4 {[%clk 0:00:06.2]}
63... Kb2 {[%clk 0:00:05.5]} 64. Kd5 {[%clk 0:00:06.3]} 64... Qc3 {[%clk
0:00:05.5]} 65. Kd6 {[%clk 0:00:07.2]} 65... Qc4 {[%clk 0:00:05.6]} 66. Kd7
{[%clk 0:00:08.1]} 66... Qc5 {[%clk 0:00:05.7]} 67. Kd8 {[%clk 0:00:09]} 67...
Qc6 {[%clk 0:00:05.6]} 68. Ke7 {[%clk 0:00:09.9]} 68... Qd5 {[%clk 0:00:06.1]}
69. Kf6 {[%clk 0:00:09.6]} 69... Qe4 {[%clk 0:00:06.4]} 70. Kg7 {[%clk
0:00:10.5]} 70... Qf5 {[%clk 0:00:06.5]} 71. Kg8 {[%clk 0:00:11.4]} 71... Qf6
{[%clk 0:00:05.3]} 72. Kh7 {[%clk 0:00:11.4]} 72... Kc3 {[%clk 0:00:06.1]} 73.
Kg8 {[%clk 0:00:12.3]} 73... Qe7 {[%clk 0:00:05.9]} 74. Kh8 {[%clk 0:00:12.2]}
74... Kd4 {[%clk 0:00:06.8]} 75. Kg8 {[%clk 0:00:13]} 75... Ke5 {[%clk
0:00:07.4]} 76. Kh8 {[%clk 0:00:13.9]} 76... Kf6 {[%clk 0:00:07.7]} 77. Kg8
{[%clk 0:00:14.8]} 77... Qg7# {[%clk 0:00:07.9]} 0-1